bitfinex/quotes_SOLUSD_20241113
["timestamp","ask_amount","ask_price","bid_price","bid_amount"]
[1731522480691,0.4272735,219.13,219.06,20.0]
[1731522481013,0.4272735,219.13,219.07,7.9882]
[1731522481577,0.4272735,219.13,219.09,43.776884]
[1731522481789,0.4272735,219.13,219.1,6.5119]
[1731522481989,1.0,219.2,219.11,43.776884]
[1731522482279,1.0,219.2,219.12,0.1]
[1731522482482,1.0,219.2,219.16,20.0]
[1731522482795,1.0,219.2,219.19,43.776884]
[1731522482999,0.4272735,219.35,219.26,7.9812]
[1731522483796,0.4272735,219.35,219.27,43.776884]
[1731522483986,0.4272735,219.35,219.27,20.0]
[1731522484980,22.0523617,219.32,219.22,20.0]
[1731522485216,0.12549,219.34,219.22,20.0]
[1731522485684,22.1778517,219.34,219.22,20.0]
[1731522486288,0.12549,219.34,219.23,31.759284]
[1731522486486,0.4272735,219.35,219.25,23.776884]
[1731522486988,26.7369517,219.34,219.23,5.7017]
[1731522487510,0.4272735,219.35,219.24,20.0]
[1731522488396,22.4796352,219.35,219.25,23.776884]
[1731522488607,22.4796352,219.35,219.25,31.758584]
[1731522488899,22.0523617,219.34,219.25,31.758584]
[1731522489281,4.9862735,219.35,219.25,31.758584]
[1731522489483,0.4272735,219.35,219.29,23.776884]
[1731522489684,0.4272735,219.35,219.3,20.0]
[1731522489889,0.4272735,219.35,219.32,20.0]
[1731522490710,0.4272735,219.35,219.31,2.2798]
[1731522491603,0.4272735,219.35,219.31,7.9794]
[1731522491800,0.4272735,219.35,219.34,43.776884]
[1731522493008,0.4272735,219.35,219.34,46.056384]
[1731522493585,0.4272735,219.35,219.34,22.2795]
[1731522493791,0.4272735,219.35,219.34,2.2795]
[1731522494103,0.4272735,219.35,219.34,46.056384]
[1731522495602,0.4272735,219.35,219.34,46.181874]
[1731522496308,0.04272735,219.56,219.39,0.1]
[1731522496491,4.59732735,219.56,219.42,23.776884]
[1731522496810,4.59732735,219.56,219.44,23.776884]
[1731522497187,22.09508905,219.56,219.47,7.9737]
[1731522497381,22.0523617,219.52,219.43,20.0]
[1731522497586,22.0523617,219.52,219.43,22.2785]
[1731522497788,22.0523617,219.51,219.43,22.2785]
[1731522497987,22.0523617,219.51,219.43,2.2785]
[1731522498707,22.0523617,219.51,219.38,20.0]
[1731522498904,4.59742735,219.56,219.42,20.0]
[1731522499113,22.0523617,219.55,219.45,23.776884]
[1731522499294,22.0523617,219.51,219.44,20.0]
[1731522499611,22.0523617,219.5,219.37,23.776884]
[1731522500191,22.0523617,219.49,219.4,20.0]
[1731522500394,22.0523617,219.49,219.41,23.776884]
[1731522500616,22.0523617,219.49,219.42,22.2787]
[1731522500798,26.6084617,219.49,219.42,22.2787]
[1731522501517,4.5561,219.49,219.36,2.2793]
[1731522501813,4.5551,219.53,219.35,14.5845]
[1731522502001,16.18112735,219.56,219.35,14.5845]
[1731522502002,0.04272735,219.56,219.44,15.4929]
[1731522502189,0.04272735,219.56,219.45,0.1]
[1731522502399,0.04272735,219.56,219.47,6.4959]
[1731522502611,0.04272735,219.56,219.48,0.91077928]
[1731522502790,0.04272735,219.56,219.5,43.776884]
[1731522504318,0.04272735,219.56,219.5,20.0]
[1731522504815,22.0523617,219.53,219.44,5.6961]
[1731522505119,0.04272735,219.56,219.44,5.6961]
[1731522506200,0.04272735,219.56,219.46,20.0]
[1731522506402,0.04272735,219.56,219.48,23.776884]
[1731522506706,0.04272735,219.56,219.52,29.471084]
[1731522506892,0.12549,219.63,219.53,20.0]
[1731522507313,0.12549,219.61,219.52,5.6942]
[1731522507614,22.0523617,219.6,219.52,5.6942]
[1731522508408,22.0523617,219.6,219.49,20.0]
[1731522508612,0.12549,219.59,219.49,20.0]
[1731522509806,0.12549,219.59,219.42,19.3691]
[1731522509807,0.12549,219.56,219.42,19.3691]
[1731522509993,22.0523617,219.53,219.42,7.9755]
[1731522510700,4.5553,219.52,219.42,7.9755]
[1731522510900,0.12549,219.51,219.42,7.9755]
[1731522511205,0.12549,219.51,219.42,5.6968]
[1731522512211,4.5553,219.52,219.42,5.6968]
[1731522512212,28.3310617,219.54,219.42,5.6968]
[1731522512418,0.12549,219.52,219.42,5.6968]
[1731522513400,4.68059,219.53,219.42,5.6968]
[1731522513821,0.12549,219.51,219.42,5.6968]
[1731522514223,0.12549,219.51,219.39,2.279]
[1731522514224,0.12549,219.51,219.39,31.1672]
[1731522514611,6.2787,219.54,219.4,0.12549]
[1731522514817,22.0523617,219.49,219.34,4.61768803]
[1731522515125,27.331,219.53,219.36,11.1687]
[1731522515126,0.12549,219.5,219.36,11.1687]
[1731522515508,0.12549,219.46,219.3,11.1718]
[1731522516315,0.12549,219.44,219.3,11.1718]
[1731522517428,4.5572,219.43,219.3,11.1718]
[1731522517630,4.5572,219.43,219.31,20.0]
[1731522518310,4.5572,219.43,219.33,3.1915]
[1731522518621,0.12549,219.44,219.33,11.1703]
[1731522519013,0.12549,219.44,219.34,20.0]
[1731522519209,0.12549,219.44,219.33,7.9788]
[1731522519435,0.12549,219.44,219.3,31.1717]
[1731522519815,0.12549,219.44,219.31,23.776884]
[1731522520140,0.12549,219.44,219.32,20.0]
[1731522520310,0.12549,219.46,219.32,20.0]
[1731522520511,4.68209,219.46,219.33,11.1703]
[1731522521539,4.5566,219.46,219.36,20.0]
[1731522522527,4.5566,219.46,219.37,3.1909]
[1731522522911,22.0523617,219.45,219.37,3.1909]
[1731522523121,22.0523617,219.45,219.35,11.1692]
[1731522524108,4.5569,219.45,219.3,71.033974]
[1731522524306,22.66933588,219.5,219.42,21.90498851]
[1731522524513,28.18368851,219.54,219.47,21.90498851]
[1731522524714,6.2787,219.54,219.48,21.90498851]
[1731522525027,6.2787,219.54,219.35,4.557]
[1731522525028,0.12549,219.53,219.47,21.90498851]
[1731522525221,6.2787,219.54,219.49,21.90498851]
[1731522525415,4.5554,219.52,219.47,21.90498851]
[1731522525629,4.5554,219.52,219.46,21.90498851]
[1731522525816,4.5554,219.52,219.4,43.776884]
[1731522526007,4.5554,219.52,219.43,21.90498851]
[1731522526008,22.03047851,219.51,219.43,21.90498851]
[1731522526208,21.90498851,219.49,219.41,21.90498851]
[1731522526733,21.90498851,219.45,219.38,21.90498851]
[1731522527833,4.557,219.44,219.34,11.1696]
[1731522528031,4.557,219.44,219.39,21.90498851]
[1731522528218,4.557,219.44,219.38,21.90498851]
[1731522528415,4.557,219.44,219.34,11.1696]
[1731522528615,4.557,219.44,219.38,21.90498851]
[1731522530422,21.90498851,219.42,219.35,21.90498851]
[1731522530627,21.90498851,219.41,219.33,21.90498851]
[1731522530834,21.90498851,219.41,219.34,21.90498851]
[1731522531037,21.90498851,219.42,219.35,21.90498851]
[1731522531233,15.6907,219.43,219.34,21.90498851]
[1731522531234,21.90498851,219.41,219.34,21.90498851]
[1731522531438,15.6907,219.43,219.33,21.90498851]
[1731522531439,21.90498851,219.4,219.33,21.90498851]
[1731522531617,21.90498851,219.39,219.32,21.90498851]
[1731522531819,21.90498851,219.39,219.26,7.9813]
[1731522531820,21.90498851,219.4,219.33,21.90498851]
[1731522532021,21.90498851,219.36,219.3,21.90498851]
[1731522532327,21.90498851,219.35,219.27,21.90498851]
[1731522532522,4.5591,219.34,219.27,21.90498851]
[1731522532839,4.5591,219.34,219.29,21.90498851]
[1731522533336,4.5591,219.34,219.23,11.1753]
[1731522533544,4.5591,219.34,219.27,21.90498851]
[1731522534039,4.5591,219.34,219.28,21.90498851]
[1731522534341,4.5591,219.34,219.19,4.61874047]
[1731522534342,0.12549,219.32,219.12,16.06382945]
[1731522534530,21.90498851,219.27,219.19,21.90498851]
[1731522534839,0.12549,219.32,219.13,11.1805]
[1731522534840,21.90498851,219.25,219.17,21.90498851]
[1731522535437,21.90498851,219.25,219.13,11.1805]
[1731522535438,21.90498851,219.25,219.19,21.90498851]
[1731522535737,4.5611,219.25,219.19,21.90498851]
[1731522536337,21.90498851,219.27,219.19,21.90498851]
[1731522536534,26.46558851,219.27,219.21,21.90498851]
[1731522536741,0.12549,219.26,219.19,21.90498851]
[1731522536941,26.46558851,219.27,219.19,21.90498851]
[1731522537250,21.90498851,219.26,219.18,21.90498851]
[1731522537427,4.561,219.25,219.18,21.90498851]
[1731522537939,4.561,219.25,219.16,3.1939]
[1731522537940,4.561,219.25,219.22,21.90498851]
[1731522538128,4.561,219.25,219.21,21.90498851]
[1731522538838,4.5607,219.27,219.21,21.90498851]
[1731522539725,0.12549,219.27,219.21,21.90498851]
[1731522540133,0.12549,219.25,219.19,21.90498851]
[1731522540835,21.90498851,219.28,219.21,21.90498851]
[1731522541027,0.12549,219.27,219.21,21.90498851]
[1731522541441,21.90498851,219.26,219.19,21.90498851]
[1731522541628,4.5612,219.24,219.19,21.90498851]
[1731522542030,4.5609,219.26,219.21,21.90498851]
[1731522544644,4.5605,219.28,219.24,21.90498851]
[1731522544954,26.3848,219.33,219.27,21.90498851]
[1731522545136,21.8254,219.33,219.31,21.90498851]
[1731522545335,21.8254,219.33,219.23,21.90498851]
[1731522545336,21.8254,219.33,219.29,21.90498851]
[1731522545951,21.8254,219.33,219.31,21.90498851]
[1731522546127,26.3848,219.33,219.15,0.12549]
[1731522546324,21.8254,219.33,219.31,21.90498851]
[1731522546529,21.8254,219.33,219.16,0.1]
[1731522546830,0.12549,219.32,219.29,21.90498851]
[1731522547037,23.902374,219.32,219.26,21.90498851]
[1731522547345,0.12549,219.31,219.18,20.0]
[1731522547538,26.3848,219.33,219.27,21.90498851]
[1731522547737,0.12549,219.32,219.27,21.90498851]
[1731522548038,45.80736251,219.32,219.24,21.90498851]
[1731522548341,0.12549,219.28,219.22,21.90498851]
[1731522548551,23.902374,219.29,219.23,21.90498851]
[1731522548728,0.12549,219.27,219.14,12.7771]
[1731522548927,0.12549,219.27,219.21,21.90498851]
[1731522549142,22.03047851,219.27,219.2,21.90498851]
[1731522549344,0.1,219.22,219.12,0.09092945]
[1731522549547,0.12549,219.14,219.12,0.09092945]
[1731522550137,21.90498851,219.14,219.12,0.09092945]
[1731522550656,26.59397851,219.13,219.12,0.09092945]
[1731522552235,72.51786251,219.13,219.12,0.09092945]
[1731522552830,26.83599,219.13,219.12,0.09092945]
[1731522553041,72.51786251,219.13,219.12,0.09092945]
[1731522553236,0.1,219.1,218.88,9.1374]
[1731522553443,21.90498851,219.04,218.96,21.90498851]
[1731522554431,21.90498851,219.08,218.89,18.39949]
[1731522554638,21.90498851,219.06,218.98,21.90498851]
[1731522555164,0.12549,219.03,218.96,21.90498851]
[1731522555751,6.88971734,219.06,219.0,21.90498851]
[1731522556138,0.12549,219.05,219.0,21.90498851]
[1731522556338,26.46958851,219.08,219.0,21.90498851]
[1731522556533,26.46958851,219.08,218.95,9.1342]
[1731522556534,0.12549,219.05,218.98,21.90498851]
[1731522556756,23.902374,219.05,218.98,21.90498851]
[1731522557953,0.12549,219.03,218.98,21.90498851]
[1731522558152,0.12549,219.03,218.93,3.654]
[1731522558153,0.12549,219.03,218.96,21.90498851]
[1731522558537,23.902374,219.03,218.96,21.90498851]
[1731522559258,23.902374,219.03,218.97,21.90498851]
[1731522559441,45.80736251,219.03,218.94,21.90498851]
[1731522559644,23.902374,219.01,218.94,21.90498851]
[1731522559858,0.12549,219.01,218.94,21.90498851]
[1731522560063,4.5662,219.0,218.94,21.90498851]
[1731522560561,0.12549,218.99,218.94,21.90498851]
[1731522563239,0.12549,218.99,218.89,12.7913]
[1731522563240,4.69199,218.99,218.96,21.90498851]
[1731522564460,4.69199,218.99,218.95,21.90498851]
[1731522564767,16.1576,219.01,218.95,21.90498851]
[1731522564964,20.7236,219.01,218.98,21.90498851]
[1731522565166,20.7227,219.06,219.0,21.90498851]
[1731522565365,20.7227,219.06,218.93,20.0]
[1731522565662,6.416,219.07,218.95,20.0]
[1731522565960,10.9808,219.07,218.95,20.0]
[1731522566471,10.9808,219.07,219.02,21.90498851]
[1731522566766,10.9808,219.07,219.03,21.90498851]
[1731522566965,0.12549,219.06,219.0,21.90498851]
[1731522567670,45.68187251,219.04,218.97,21.90498851]
[1731522567857,23.902374,219.03,218.96,21.90498851]
[1731522568259,45.80736251,219.03,218.96,21.90498851]
[1731522568767,4.5657,219.02,218.96,21.90498851]
[1731522568976,45.80736251,219.01,218.96,0.3002113]
[1731522569151,0.12549,218.99,218.96,0.3002113]
[1731522569467,0.12549,219.0,218.96,0.3002113]
[1731522569671,22.03047851,219.0,218.96,0.3002113]
[1731522569864,0.12549,218.98,218.96,0.3002113]
[1731522570773,4.5668,218.97,218.96,0.3002113]
[1731522570949,4.69229,218.97,218.96,0.3002113]
[1731522572274,28.469174,218.97,218.96,0.3002113]
[1731522573768,50.37416251,218.97,218.96,0.3002113]
[1731522573968,34.970574,218.97,218.96,0.3002113]
[1731522574552,56.97556251,218.97,218.96,0.3002113]
[1731522574760,34.970574,218.97,218.96,0.3002113]
[1731522577371,41.89930303,218.97,218.96,0.3002113]
[1731522578075,4.5657,219.02,218.96,22.20519981]
[1731522578376,4.5657,219.02,218.98,21.90498851]
[1731522578559,4.5657,219.02,218.99,21.90498851]
[1731522579069,0.12549,218.99,218.96,0.3002113]
[1731522579277,0.12549,218.98,218.96,0.3002113]
[1731522579978,4.69229,218.97,218.96,0.3002113]
[1731522582161,4.566,219.01,218.96,22.20519981]
[1731522582375,23.776884,219.0,218.96,22.20519981]
[1731522582757,11.49380979,219.03,218.99,21.90498851]
[1731522582957,4.5647,219.07,219.02,21.90498851]
[1731522583171,4.5647,219.07,218.96,3.9538113]
[1731522583367,0.12549,219.06,219.03,21.90498851]
[1731522583579,4.5647,219.07,219.03,21.90498851]
[1731522583765,0.12549,219.06,219.03,21.90498851]
[1731522583958,4.5651,219.05,219.03,21.90498851]
[1731522584161,4.5651,219.05,219.02,0.3002113]
[1731522584360,0.12549,219.04,219.02,0.3002113]
[1731522584561,0.12549,219.04,219.03,21.90498851]
[1731522584772,4.5651,219.05,219.03,21.90498851]
[1731522584972,0.12549,219.04,219.02,0.3002113]
[1731522585283,0.12549,219.04,219.02,22.20519981]
[1731522585677,0.12549,219.04,219.02,0.3002113]
[1731522585981,4.69019,219.07,219.02,0.3002113]
[1731522586655,4.69019,219.07,219.02,22.20519981]
[1731522586869,4.69019,219.07,219.02,0.3002113]
[1731522588879,4.69019,219.07,219.02,22.20519981]
[1731522589077,26.59517851,219.07,219.02,0.3002113]
[1731522589582,4.69019,219.07,219.02,0.3002113]
[1731522589764,45.80736251,219.03,219.02,0.3002113]
[1731522590877,50.37286251,219.03,219.02,0.3002113]
[1731522592264,50.37286251,219.03,219.02,1.13e-05]
[1731522592470,78.65865102,219.03,219.02,1.13e-05]
[1731522592769,0.12549,218.98,218.88,21.90498851]
[1731522592974,23.902374,218.98,218.88,21.90498851]
[1731522593172,21.90498851,218.92,218.84,21.90498851]
[1731522593481,39.330174,218.98,218.8,18.7102717]
[1731522593482,22.03047851,218.89,218.82,21.90498851]
[1731522593661,0.12549,218.89,218.84,21.90498851]
[1731522593867,0.12549,218.89,218.85,21.90498851]
[1731522594069,28.82672812,218.92,218.86,21.90498851]
[1731522594070,0.12549,218.91,218.86,21.90498851]
[1731522594270,0.12549,218.91,218.85,21.90498851]
[1731522595081,0.12549,218.89,218.85,21.90498851]
[1731522595660,4.5682,218.9,218.84,21.90498851]
[1731522595969,4.5682,218.9,218.85,21.90498851]
[1731522596385,0.12549,218.89,218.83,21.90498851]
[1731522596894,0.12549,218.89,218.84,21.90498851]
[1731522597271,45.80736251,218.91,218.84,21.90498851]
[1731522597583,45.80736251,218.89,218.82,21.90498851]
[1731522598170,23.902374,218.89,218.82,21.90498851]
[1731522599092,0.12549,218.87,218.82,21.90498851]
[1731522599467,0.12549,218.87,218.83,21.90498851]
[1731522599665,0.12549,218.87,218.8,4.0856717]
[1731522599871,0.12549,218.88,218.82,21.90498851]
[1731522600086,21.5884,218.98,218.87,21.90498851]
[1731522600272,21.5884,218.98,218.83,20.0]
[1731522600471,28.51348209,218.98,218.83,20.0]
[1731522600671,4.5672,218.96,218.83,20.0]
[1731522601689,0.12549,218.95,218.89,21.90498851]
[1731522601874,4.69289,218.95,218.89,21.90498851]
[1731522602263,0.12549,218.93,218.86,21.90498851]
[1731522602786,0.12549,218.93,218.87,21.90498851]
[1731522603084,45.80736251,218.93,218.85,21.90498851]
[1731522603391,4.567,218.97,218.92,21.90498851]
[1731522603685,6.92508209,218.98,218.87,23.776884]
[1731522603872,6.92508209,218.98,218.97,21.90498851]
[1731522604186,6.4536,219.04,218.97,25.55828851]
[1731522604384,6.92231539,219.02,219.01,21.90498851]
[1731522604780,6.92231539,219.02,218.99,21.90498851]
[1731522605081,6.92231539,219.02,219.01,21.90498851]
[1731522605289,6.92231539,219.02,219.0,21.90498851]
[1731522605466,6.92231539,219.02,219.01,21.90498851]
[1731522605665,6.92231539,219.02,218.97,9.1336]
[1731522605966,6.92231539,219.02,218.99,21.90498851]
[1731522606181,4.69149,219.01,218.95,21.90498851]
[1731522606673,4.69149,219.01,218.88,9.1371]
[1731522606674,0.12549,218.99,218.88,9.1371]
[1731522606877,45.80736251,218.99,218.91,21.90498851]
[1731522607268,23.902374,218.99,218.93,21.90498851]
[1731522607790,0.12549,218.97,218.92,21.90498851]
[1731522607973,0.12549,218.97,218.88,9.1371]
[1731522607974,22.03047851,218.97,218.88,9.1371]
[1731522608170,22.03047851,218.97,218.9,21.90498851]
[1731522608377,0.12549,218.95,218.91,21.90498851]
[1731522608875,4.5662,219.0,218.94,21.90498851]
[1731522609094,21.90498851,219.01,218.96,21.90498851]
[1731522609095,0.12549,219.01,218.96,21.90498851]
[1731522609388,0.12549,219.01,218.98,21.90498851]
[1731522609574,0.12549,219.01,218.99,21.90498851]
[1731522609777,6.92231539,219.02,219.0,21.90498851]
[1731522609970,6.92231539,219.02,219.01,21.90498851]
[1731522610689,6.92231539,219.02,219.0,21.90498851]
[1731522610997,6.92231539,219.02,218.99,12.7858]
[1731522610998,6.92231539,219.02,219.01,21.90498851]
[1731522612276,6.4536,219.09,219.01,21.90498851]
[1731522612486,11.018,219.09,219.05,21.90498851]
[1731522612685,6.9224625,219.07,219.03,21.90498851]
[1731522612993,6.9224625,219.07,219.04,21.90498851]
[1731522613789,0.12549,219.06,219.04,21.90498851]
[1731522613993,0.12549,219.06,219.01,21.90498851]
[1731522614380,0.12549,219.04,219.01,21.90498851]
[1731522615796,6.9224625,219.07,219.03,21.90498851]
[1731522616003,4.5629,219.16,219.02,15.3324]
[1731522616203,4.562,219.2,219.13,21.90498851]
[1731522616383,6.92005774,219.15,219.13,21.90498851]
[1731522616690,0.12549,219.19,219.13,21.90498851]
[1731522617094,0.12549,219.14,219.1,21.90498851]
[1731522617299,0.12549,219.14,219.08,21.90498851]
[1731522617300,4.68879,219.14,219.08,21.90498851]
[1731522617482,6.92069138,219.13,219.11,21.90498851]
[1731522617681,6.92069138,219.13,219.04,12.7828]
[1731522617682,6.92069138,219.13,219.12,21.90498851]
[1731522618283,6.92069138,219.13,219.11,21.90498851]
[1731522618479,6.92069138,219.13,219.1,21.90498851]
[1731522618796,6.92069138,219.13,219.11,21.90498851]
[1731522618998,6.92069138,219.13,219.12,21.90498851]
[1731522619207,0.77252942,219.25,219.13,32.7778]
[1731522619497,6.9179487,219.22,219.19,21.90498851]
[1731522619690,6.9179487,219.22,219.16,21.90498851]
[1731522620080,0.12549,219.21,219.13,9.127]
[1731522620279,0.12549,219.21,219.09,20.0]
[1731522620889,0.12549,219.21,219.08,9.1288]
[1731522621087,23.902374,219.21,219.08,9.1288]
[1731522621287,21.90498851,219.17,219.1,21.90498851]
[1731522621500,21.90498851,219.17,219.08,9.1288]
[1731522621501,0.12549,219.15,219.09,21.90498851]
[1731522621693,0.12549,219.15,219.1,21.90498851]
[1731522622002,0.12549,219.15,219.05,3.6521]
[1731522622003,0.12549,219.15,219.09,21.90498851]
[1731522622184,0.12549,219.15,219.1,21.90498851]
[1731522622704,4.68869,219.15,219.09,21.90498851]
[1731522622884,4.68869,219.15,219.05,12.7824]
[1731522623202,26.59367851,219.15,219.08,21.90498851]
[1731522623401,21.90498851,219.12,219.05,21.90498851]
[1731522623793,21.90498851,219.11,219.04,21.90498851]
[1731522623992,21.90498851,219.12,219.04,21.90498851]
[1731522624384,21.90498851,219.11,219.04,21.90498851]
[1731522624616,22.03047851,219.07,219.0,21.90498851]
[1731522624903,22.03047851,219.07,218.95,9.1341]
[1731522624904,0.12549,219.07,219.03,21.90498851]
[1731522625485,26.46908851,219.1,219.03,21.90498851]
[1731522625694,26.46908851,219.1,219.04,21.90498851]
[1731522625695,0.12549,219.09,219.04,21.90498851]
[1731522625898,0.12549,219.09,219.03,21.90498851]
[1731522626089,0.12549,219.09,219.05,21.90498851]
[1731522626410,4.5641,219.1,219.05,21.90498851]
[1731522626910,4.5641,219.1,219.0,9.1323]
[1731522626911,4.5641,219.1,219.04,21.90498851]
[1731522627090,4.5641,219.1,219.05,21.90498851]
[1731522627290,4.5641,219.1,219.04,21.90498851]
[1731522627494,4.5641,219.1,219.05,21.90498851]
[1731522627918,4.5641,219.1,219.04,21.90498851]
[1731522628507,4.5641,219.1,219.05,21.90498851]
[1731522628806,6.3423,219.14,219.09,21.90498851]
[1731522629015,11.0437,219.19,219.05,20.0]
[1731522629186,0.12549,219.17,219.11,21.90498851]
[1731522629511,21.90498851,219.18,219.11,21.90498851]
[1731522629695,6.92047959,219.16,219.11,21.90498851]
[1731522630097,11.48347959,219.16,219.1,21.90498851]
[1731522630291,0.12549,219.15,219.08,21.90498851]
[1731522630497,45.80736251,219.15,219.08,21.90498851]
[1731522630706,23.902374,219.15,219.08,21.90498851]
[1731522631004,23.902374,219.15,219.1,21.90498851]
[1731522631204,23.902374,219.15,219.09,21.90498851]
[1731522631407,0.12549,219.13,219.07,21.90498851]
[1731522631615,0.12549,219.14,219.08,21.90498851]
[1731522631792,22.03047851,219.14,219.07,21.90498851]
[1731522631995,0.12549,219.12,219.06,21.90498851]
[1731522632198,23.902374,219.12,219.02,12.784]
[1731522632408,23.902374,219.12,219.07,21.90498851]
[1731522633314,4.5635,219.13,219.1,21.90498851]
[1731522633627,4.5635,219.13,219.08,21.90498851]
[1731522633811,4.5635,219.13,219.03,20.0]
[1731522633812,4.5635,219.13,219.09,21.90498851]
[1731522634113,4.5635,219.13,219.1,21.90498851]
[1731522634311,6.92047959,219.16,219.12,21.90498851]
[1731522634493,6.92047959,219.16,219.15,21.90498851]
[1731522636026,6.92047959,219.16,219.05,6.135]
[1731522636027,0.12549,219.15,219.05,6.135]
[1731522636311,0.12549,219.15,219.04,27.9297]
[1731522636312,45.80736251,219.13,219.06,21.90498851]
[1731522636495,23.902374,219.13,219.07,21.90498851]
[1731522636689,45.80736251,219.13,219.06,21.90498851]
[1731522636890,45.80736251,219.13,219.07,21.90498851]
[1731522636891,23.902374,219.13,219.07,21.90498851]
[1731522637297,45.80736251,219.13,219.06,21.90498851]
[1731522637490,0.12549,219.11,219.05,21.90498851]
[1731522637694,23.902374,219.11,219.06,21.90498851]
[1731522638118,4.5641,219.1,219.06,21.90498851]
[1731522638413,4.5641,219.1,219.03,3.6523]
[1731522638619,4.5641,219.1,219.05,21.90498851]
[1731522638798,4.5641,219.1,219.06,21.90498851]
[1731522640001,4.5641,219.1,219.02,9.1315]
[1731522640002,68.87589123,219.09,219.02,21.90498851]
[1731522640318,68.87589123,219.09,218.97,9.1335]
[1731522640319,23.19401872,219.09,219.07,21.90498851]
[1731522640520,6.94992872,219.09,218.98,0.22549]
[1731522641097,6.94992872,219.09,219.08,21.90498851]
[1731522641704,6.4813,219.13,219.08,21.90498851]
[1731522641705,6.4813,219.19,219.08,21.90498851]
[1731522641906,6.4813,219.19,219.17,21.90498851]
[1731522642210,6.93361701,219.18,219.15,21.90498851]
[1731522642411,6.93361701,219.18,219.17,21.90498851]
[1731522643222,6.93361701,219.18,219.15,21.90498851]
[1731522643621,6.93361701,219.18,219.16,21.90498851]
[1731522644105,6.93361701,219.18,219.15,21.90498851]
[1731522644307,11.49611701,219.18,219.15,21.90498851]
[1731522644501,11.49611701,219.18,219.14,21.90498851]
[1731522644706,11.49611701,219.18,219.15,21.90498851]
[1731522644909,0.12549,219.17,219.12,21.90498851]
[1731522645108,11.49611701,219.18,219.13,21.90498851]
[1731522645310,0.12549,219.17,219.13,21.90498851]
[1731522645820,23.902374,219.17,219.12,21.90498851]
[1731522646018,23.902374,219.17,219.11,21.90498851]
[1731522646409,23.902374,219.17,219.1,21.90498851]
[1731522646610,45.80736251,219.17,219.1,21.90498851]
[1731522646901,45.80736251,219.17,219.09,21.90498851]
[1731522646902,0.12549,219.15,219.09,21.90498851]
[1731522647107,0.12549,219.13,219.08,21.90498851]
[1731522647320,4.5637,219.12,219.08,21.90498851]
[1731522648123,23.902374,219.11,219.06,21.90498851]
[1731522649424,23.902374,219.09,219.04,21.90498851]
[1731522649613,23.902374,219.09,219.02,21.90498851]
[1731522649810,23.902374,219.09,219.03,21.90498851]
[1731522650013,28.48118851,219.13,219.05,21.90498851]
[1731522650217,4.5637,219.12,218.96,31.1557]
[1731522650425,0.12549,219.1,219.05,21.90498851]
[1731522650724,0.12549,219.08,219.02,21.90498851]
[1731522650905,23.902374,219.08,219.02,21.90498851]
[1731522651110,45.80736251,219.08,219.01,21.90498851]
[1731522651320,0.12549,219.06,219.01,21.90498851]
[1731522652120,0.12549,219.06,219.02,21.90498851]
[1731522652312,6.92975501,219.05,219.02,21.90498851]
[1731522652728,6.92975501,219.05,219.03,21.90498851]
[1731522653430,6.92975501,219.05,218.95,24.3611]
[1731522653431,6.92975501,219.05,219.04,21.90498851]
[1731522653837,6.92975501,219.05,219.02,21.90498851]
[1731522654014,11.49495501,219.05,219.0,21.90498851]
[1731522654210,6.92975501,219.05,219.0,21.90498851]
[1731522654415,6.92975501,219.05,219.02,21.90498851]
[1731522654827,6.92975501,219.05,219.04,21.90498851]
[1731522655011,6.92975501,219.05,219.04,41.90498851]
[1731522655219,4.5622,219.19,219.05,20.0]
[1731522655533,6.92459894,219.15,219.05,20.0]
[1731522655827,4.5624,219.18,219.14,21.90498851]
[1731522656032,6.2198,219.2,219.13,21.90498851]
[1731522656033,0.12549,219.17,219.13,21.90498851]
[1731522656327,6.92393132,219.14,219.07,20.0]
[1731522657229,0.12549,219.13,219.08,21.90498851]
[1731522657616,0.12549,219.11,219.06,31.03488851]
[1731522657819,23.902374,219.11,219.04,21.90498851]
[1731522658018,0.12549,219.11,219.09,21.90498851]
[1731522658321,11.48723132,219.14,219.08,21.90498851]
[1731522658833,0.12549,219.13,219.06,21.90498851]
[1731522659034,0.12549,219.13,219.07,21.90498851]
[1731522659532,0.12549,219.14,219.07,21.90498851]
[1731522659732,0.12549,219.12,219.07,21.90498851]
[1731522659923,0.12549,219.12,219.09,21.90498851]